{"text_format":"3","workbook":"xlsx","n_sheets":1,"sheets":["Asmeninis mėnesio biudžetas"],"read":"whole","date_system":"1900"}

{"sheet":"Asmeninis mėnesio biudžetas","index":0,"n_rows":64,"n_cols":10,"rows_kept":64,"merged":[[1,1,1,9],[2,1,2,9],[4,1,6,1],[4,2,4,3],[4,6,5,8],[4,9,5,9],[5,2,5,3],[6,2,6,3],[6,6,7,8],[6,9,7,9],[7,1,9,1],[7,2,7,3],[8,2,8,3],[8,6,9,8],[8,9,9,9],[9,2,9,3],[22,6,22,9],[23,1,23,4],[31,6,31,9],[33,1,33,4],[38,6,38,9],[40,1,40,4],[44,6,44,9],[46,1,46,4],[50,6,50,9],[54,1,54,4],[57,6,57,9],[58,6,59,8],[58,9,59,9],[60,6,61,8],[60,9,61,9],[62,6,63,8],[62,9,63,9]]}
[]
[null,"Asmeninis mėnesio biudžetas"]
[]
[]
[null,"NUMATOMOS MĖNESIO PAJAMOS","1 pajamos",null,{"v":2500,"d":"2,500 EUR"},null,"NUMATOMAS BALANSAS (numatomos pajamos atėmus išlaidas)",null,null,{"$f":"E7-J59","v":{"v":940,"d":"940 EUR"}}]
[null,null,"Papildomos pajamos",null,{"v":500,"d":"500 EUR"}]
[null,null,"Mėnesio pajamų suma",null,{"$f":"SUM(E5:E6)","v":{"v":3000,"d":"3,000 EUR"}},null,"FAKTINIS BALANSAS (faktinės pajamos atėmus išlaidas)",null,null,{"$f":"E10-J61","v":{"v":960,"d":"960 EUR"}}]
[null,"FAKTINĖS MĖNESIO PAJAMOS","1 pajamos",null,{"v":2500,"d":"2,500 EUR"}]
[null,null,"Papildomos pajamos",null,{"v":500,"d":"500 EUR"},null,"SKIRTUMAS (faktinis balansas atėmus numatomą balansą)",null,null,{"$f":"J7-J5","v":{"v":20,"d":"20 EUR"}}]
[null,null,"Mėnesio pajamų suma",null,{"$f":"SUM(E8:E9)","v":{"v":3000,"d":"3,000 EUR"}}]
[]
[null,"BŪSTAS","Numatomos išlaidos","Faktinės išlaidos","Skirtumas",null,"PRAMOGOS","Numatomos išlaidos","Faktinės išlaidos","Skirtumas"]
[null,"Būsto paskola arba nuoma",{"v":1500,"d":"1,500 EUR"},{"v":1400,"d":"1,400 EUR"},{"$f":"Lentelė1[[#This Row],[Numatomos išlaidos]]-Lentelė1[[#This Row],[Faktinės išlaidos]]","v":{"v":100,"d":"100 EUR"}},null,"Vaizdo įrašai / DVD",{"v":0,"d":"0 EUR"},{"v":50,"d":"50 EUR"},{"$f":"Lentelė2[[#This Row],[Numatomos išlaidos]]-Lentelė2[[#This Row],[Faktinės išlaidos]]","v":{"v":-50,"d":"-50 EUR"}}]
[null,"Telefonas",{"v":60,"d":"60 EUR"},{"v":100,"d":"100 EUR"},{"$f":"Lentelė1[[#This Row],[Numatomos išlaidos]]-Lentelė1[[#This Row],[Faktinės išlaidos]]","v":{"v":-40,"d":"-40 EUR"}},null,"CD",null,null,{"$f":"Lentelė2[[#This Row],[Numatomos išlaidos]]-Lentelė2[[#This Row],[Faktinės išlaidos]]","v":{"v":0,"d":"0 EUR"}}]
[null,"Elektra",{"v":50,"d":"50 EUR"},{"v":60,"d":"60 EUR"},{"$f":"Lentelė1[[#This Row],[Numatomos išlaidos]]-Lentelė1[[#This Row],[Faktinės išlaidos]]","v":{"v":-10,"d":"-10 EUR"}},null,"Filmai",null,null,{"$f":"Lentelė2[[#This Row],[Numatomos išlaidos]]-Lentelė2[[#This Row],[Faktinės išlaidos]]","v":{"v":0,"d":"0 EUR"}}]
[null,"Dujos",{"v":200,"d":"200 EUR"},{"v":180,"d":"180 EUR"},{"$f":"Lentelė1[[#This Row],[Numatomos išlaidos]]-Lentelė1[[#This Row],[Faktinės išlaidos]]","v":{"v":20,"d":"20 EUR"}},null,"Koncertai",null,null,{"$f":"Lentelė2[[#This Row],[Numatomos išlaidos]]-Lentelė2[[#This Row],[Faktinės išlaidos]]","v":{"v":0,"d":"0 EUR"}}]
[null,"Vandens ir kanalizacija",null,null,{"$f":"Lentelė1[[#This Row],[Numatomos išlaidos]]-Lentelė1[[#This Row],[Faktinės išlaidos]]","v":{"v":0,"d":"0 EUR"}},null,"Sporto renginiai",null,null,{"$f":"Lentelė2[[#This Row],[Numatomos išlaidos]]-Lentelė2[[#This Row],[Faktinės išlaidos]]","v":{"v":0,"d":"0 EUR"}}]
[null,"Kabelinė televizija",null,null,{"$f":"Lentelė1[[#This Row],[Numatomos išlaidos]]-Lentelė1[[#This Row],[Faktinės išlaidos]]","v":{"v":0,"d":"0 EUR"}},null,"Teatras",null,null,{"$f":"Lentelė2[[#This Row],[Numatomos išlaidos]]-Lentelė2[[#This Row],[Faktinės išlaidos]]","v":{"v":0,"d":"0 EUR"}}]
[null,"Atliekų tvarkymas",null,null,{"$f":"Lentelė1[[#This Row],[Numatomos išlaidos]]-Lentelė1[[#This Row],[Faktinės išlaidos]]","v":{"v":0,"d":"0 EUR"}},null,"Kita",null,null,{"$f":"Lentelė2[[#This Row],[Numatomos išlaidos]]-Lentelė2[[#This Row],[Faktinės išlaidos]]","v":{"v":0,"d":"0 EUR"}}]
[null,"Priežiūra arba remontas",null,null,{"$f":"Lentelė1[[#This Row],[Numatomos išlaidos]]-Lentelė1[[#This Row],[Faktinės išlaidos]]","v":{"v":0,"d":"0 EUR"}},null,"Kita",null,null,{"$f":"Lentelė2[[#This Row],[Numatomos išlaidos]]-Lentelė2[[#This Row],[Faktinės išlaidos]]","v":{"v":0,"d":"0 EUR"}}]
[null,"Tiekimas",null,null,{"$f":"Lentelė1[[#This Row],[Numatomos išlaidos]]-Lentelė1[[#This Row],[Faktinės išlaidos]]","v":{"v":0,"d":"0 EUR"}},null,"Kita",null,null,{"$f":"Lentelė2[[#This Row],[Numatomos išlaidos]]-Lentelė2[[#This Row],[Faktinės išlaidos]]","v":{"v":0,"d":"0 EUR"}}]
[null,"Kita",null,null,{"$f":"Lentelė1[[#This Row],[Numatomos išlaidos]]-Lentelė1[[#This Row],[Faktinės išlaidos]]","v":{"v":0,"d":"0 EUR"}},null,"Suma",{"$f":"SUBTOTAL(109,Lentelė2[Numatomos išlaidos])","v":{"v":0,"d":"0 EUR"}},{"$f":"SUBTOTAL(109,Lentelė2[Faktinės išlaidos])","v":{"v":50,"d":"50 EUR"}},{"$f":"SUBTOTAL(109,Lentelė2[Skirtumas])","v":{"v":-50,"d":"-50 EUR"}}]
[null,"Suma",{"$f":"SUBTOTAL(109,Lentelė1[Numatomos išlaidos])","v":{"v":1810,"d":"1,810 EUR"}},{"$f":"SUBTOTAL(109,Lentelė1[Faktinės išlaidos])","v":{"v":1740,"d":"1,740 EUR"}},{"$f":"SUBTOTAL(109,Lentelė1[Skirtumas])","v":{"v":70,"d":"70 EUR"}}]
[{"$nulls":6},"PASKOLOS","Numatomos išlaidos","Faktinės išlaidos","Skirtumas"]
[null,"TRANSPORTAS","Numatomos išlaidos","Faktinės išlaidos","Skirtumas",null,"Asmeninės",null,null,{"$f":"Lentelė8[[#This Row],[Numatomos išlaidos]]-Lentelė8[[#This Row],[Faktinės išlaidos]]","v":{"v":0,"d":"0 EUR"}}]
[null,"Įmoka už automobilį",{"v":250,"d":"250 EUR"},{"v":250,"d":"250 EUR"},{"$f":"Lentelė3[[#This Row],[Numatomos išlaidos]]-Lentelė3[[#This Row],[Faktinės išlaidos]]","v":{"v":0,"d":"0 EUR"}},null,"Studento",null,null,{"$f":"Lentelė8[[#This Row],[Numatomos išlaidos]]-Lentelė8[[#This Row],[Faktinės išlaidos]]","v":{"v":0,"d":"0 EUR"}}]
[null,"Autobuso / taksi mokestis",null,null,{"$f":"Lentelė3[[#This Row],[Numatomos išlaidos]]-Lentelė3[[#This Row],[Faktinės išlaidos]]","v":{"v":0,"d":"0 EUR"}},null,"Kredito kortelė",null,null,{"$f":"Lentelė8[[#This Row],[Numatomos išlaidos]]-Lentelė8[[#This Row],[Faktinės išlaidos]]","v":{"v":0,"d":"0 EUR"}}]
[null,"Draudimas",null,null,{"$f":"Lentelė3[[#This Row],[Numatomos išlaidos]]-Lentelė3[[#This Row],[Faktinės išlaidos]]","v":{"v":0,"d":"0 EUR"}},null,"Kredito kortelė",null,null,{"$f":"Lentelė8[[#This Row],[Numatomos išlaidos]]-Lentelė8[[#This Row],[Faktinės išlaidos]]","v":{"v":0,"d":"0 EUR"}}]
[null,"Licencijavimas",null,null,{"$f":"Lentelė3[[#This Row],[Numatomos išlaidos]]-Lentelė3[[#This Row],[Faktinės išlaidos]]","v":{"v":0,"d":"0 EUR"}},null,"Kredito kortelė",null,null,{"$f":"Lentelė8[[#This Row],[Numatomos išlaidos]]-Lentelė8[[#This Row],[Faktinės išlaidos]]","v":{"v":0,"d":"0 EUR"}}]
[null,"Kuras",null,null,{"$f":"Lentelė3[[#This Row],[Numatomos išlaidos]]-Lentelė3[[#This Row],[Faktinės išlaidos]]","v":{"v":0,"d":"0 EUR"}},null,"Kita",null,null,{"$f":"Lentelė8[[#This Row],[Numatomos išlaidos]]-Lentelė8[[#This Row],[Faktinės išlaidos]]","v":{"v":0,"d":"0 EUR"}}]
[null,"Priežiūra",null,null,{"$f":"Lentelė3[[#This Row],[Numatomos išlaidos]]-Lentelė3[[#This Row],[Faktinės išlaidos]]","v":{"v":0,"d":"0 EUR"}},null,"Suma",{"$f":"SUBTOTAL(109,Lentelė8[Numatomos išlaidos])","v":{"v":0,"d":"0 EUR"}},{"$f":"SUBTOTAL(109,Lentelė8[Faktinės išlaidos])","v":{"v":0,"d":"0 EUR"}},{"$f":"SUBTOTAL(109,Lentelė8[Skirtumas])","v":{"v":0,"d":"0 EUR"}}]
[null,"Kita",null,null,{"$f":"Lentelė3[[#This Row],[Numatomos išlaidos]]-Lentelė3[[#This Row],[Faktinės išlaidos]]","v":{"v":0,"d":"0 EUR"}}]
[null,"Suma",{"$f":"SUBTOTAL(109,Lentelė3[Numatomos išlaidos])","v":{"v":250,"d":"250 EUR"}},{"$f":"SUBTOTAL(109,Lentelė3[Faktinės išlaidos])","v":{"v":250,"d":"250 EUR"}},{"$f":"SUBTOTAL(109,Lentelė3[Skirtumas])","v":{"v":0,"d":"0 EUR"}},null,"MOKESČIAI","Numatomos išlaidos","Faktinės išlaidos","Skirtumas"]
[{"$nulls":6},"Federaliniai",null,null,{"$f":"Lentelė9[[#This Row],[Numatomos išlaidos]]-Lentelė9[[#This Row],[Faktinės išlaidos]]","v":{"v":0,"d":"0 EUR"}}]
[null,"DRAUDIMAS","Numatomos išlaidos","Faktinės išlaidos","Skirtumas",null,"Šalies",null,null,{"$f":"Lentelė9[[#This Row],[Numatomos išlaidos]]-Lentelė9[[#This Row],[Faktinės išlaidos]]","v":{"v":0,"d":"0 EUR"}}]
[null,"Namų",null,null,{"$f":"Lentelė4[[#This Row],[Numatomos išlaidos]]-Lentelė4[[#This Row],[Faktinės išlaidos]]","v":{"v":0,"d":"0 EUR"}},null,"Vietiniai",null,null,{"$f":"Lentelė9[[#This Row],[Numatomos išlaidos]]-Lentelė9[[#This Row],[Faktinės išlaidos]]","v":{"v":0,"d":"0 EUR"}}]
[null,"Sveikatos",null,null,{"$f":"Lentelė4[[#This Row],[Numatomos išlaidos]]-Lentelė4[[#This Row],[Faktinės išlaidos]]","v":{"v":0,"d":"0 EUR"}},null,"Kita",null,null,{"$f":"Lentelė9[[#This Row],[Numatomos išlaidos]]-Lentelė9[[#This Row],[Faktinės išlaidos]]","v":{"v":0,"d":"0 EUR"}}]
[null,"Gyvybės",null,null,{"$f":"Lentelė4[[#This Row],[Numatomos išlaidos]]-Lentelė4[[#This Row],[Faktinės išlaidos]]","v":{"v":0,"d":"0 EUR"}},null,"Suma",{"$f":"SUBTOTAL(109,Lentelė9[Numatomos išlaidos])","v":{"v":0,"d":"0 EUR"}},{"$f":"SUBTOTAL(109,Lentelė9[Faktinės išlaidos])","v":{"v":0,"d":"0 EUR"}},{"$f":"SUBTOTAL(109,Lentelė9[Skirtumas])","v":{"v":0,"d":"0 EUR"}}]
[null,"Kita",null,null,{"$f":"Lentelė4[[#This Row],[Numatomos išlaidos]]-Lentelė4[[#This Row],[Faktinės išlaidos]]","v":{"v":0,"d":"0 EUR"}}]
[null,"Suma",{"$f":"SUBTOTAL(109,Lentelė4[Numatomos išlaidos])","v":{"v":0,"d":"0 EUR"}},{"$f":"SUBTOTAL(109,Lentelė4[Faktinės išlaidos])","v":{"v":0,"d":"0 EUR"}},{"$f":"SUBTOTAL(109,Lentelė4[Skirtumas])","v":{"v":0,"d":"0 EUR"}},null,"SANTAUPOS ARBA INVESTICIJOS","Numatomos išlaidos","Faktinės išlaidos","Skirtumas"]
[{"$nulls":6},"Pensijos sąskaita",null,null,{"$f":"Lentelė10[[#This Row],[Numatomos išlaidos]]-Lentelė10[[#This Row],[Faktinės išlaidos]]","v":{"v":0,"d":"0 EUR"}}]
[null,"MAISTAS","Numatomos išlaidos","Faktinės išlaidos","Skirtumas",null,"Investicijų sąskaita",null,null,{"$f":"Lentelė10[[#This Row],[Numatomos išlaidos]]-Lentelė10[[#This Row],[Faktinės išlaidos]]","v":{"v":0,"d":"0 EUR"}}]
[null,"Maisto prekės",null,null,{"$f":"Lentelė5[[#This Row],[Numatomos išlaidos]]-Lentelė5[[#This Row],[Faktinės išlaidos]]","v":{"v":0,"d":"0 EUR"}},null,"Kita",null,null,{"$f":"Lentelė10[[#This Row],[Numatomos išlaidos]]-Lentelė10[[#This Row],[Faktinės išlaidos]]","v":{"v":0,"d":"0 EUR"}}]
[null,"Restoranai",null,null,{"$f":"Lentelė5[[#This Row],[Numatomos išlaidos]]-Lentelė5[[#This Row],[Faktinės išlaidos]]","v":{"v":0,"d":"0 EUR"}},null,"Suma",{"$f":"SUBTOTAL(109,Lentelė10[Numatomos išlaidos])","v":{"v":0,"d":"0 EUR"}},{"$f":"SUBTOTAL(109,Lentelė10[Faktinės išlaidos])","v":{"v":0,"d":"0 EUR"}},{"$f":"SUBTOTAL(109,Lentelė10[Skirtumas])","v":{"v":0,"d":"0 EUR"}}]
[null,"Kita",null,null,{"$f":"Lentelė5[[#This Row],[Numatomos išlaidos]]-Lentelė5[[#This Row],[Faktinės išlaidos]]","v":{"v":0,"d":"0 EUR"}}]
[null,"Suma",{"$f":"SUBTOTAL(109,Lentelė5[Numatomos išlaidos])","v":{"v":0,"d":"0 EUR"}},{"$f":"SUBTOTAL(109,Lentelė5[Faktinės išlaidos])","v":{"v":0,"d":"0 EUR"}},{"$f":"SUBTOTAL(109,Lentelė5[Skirtumas])","v":{"v":0,"d":"0 EUR"}},null,"DOVANOS IR AUKOS","Numatomos išlaidos","Faktinės išlaidos","Skirtumas"]
[{"$nulls":6},"Labdara 1",null,null,{"$f":"Lentelė11[[#This Row],[Numatomos išlaidos]]-Lentelė11[[#This Row],[Faktinės išlaidos]]","v":{"v":0,"d":"0 EUR"}}]
[null,"Gyvūnai","Numatomos išlaidos","Faktinės išlaidos","Skirtumas",null,"Labdara 2",null,null,{"$f":"Lentelė11[[#This Row],[Numatomos išlaidos]]-Lentelė11[[#This Row],[Faktinės išlaidos]]","v":{"v":0,"d":"0 EUR"}}]
[null,"Maistas",null,null,{"$f":"Lentelė6[[#This Row],[Numatomos išlaidos]]-Lentelė6[[#This Row],[Faktinės išlaidos]]","v":{"v":0,"d":"0 EUR"}},null,"Labdara 3",null,null,{"$f":"Lentelė11[[#This Row],[Numatomos išlaidos]]-Lentelė11[[#This Row],[Faktinės išlaidos]]","v":{"v":0,"d":"0 EUR"}}]
[null,"Medicininės išlaidos",null,null,{"$f":"Lentelė6[[#This Row],[Numatomos išlaidos]]-Lentelė6[[#This Row],[Faktinės išlaidos]]","v":{"v":0,"d":"0 EUR"}},null,"Suma",{"$f":"SUBTOTAL(109,Lentelė11[Numatomos išlaidos])","v":{"v":0,"d":"0 EUR"}},{"$f":"SUBTOTAL(109,Lentelė11[Faktinės išlaidos])","v":{"v":0,"d":"0 EUR"}},{"$f":"SUBTOTAL(109,Lentelė11[Skirtumas])","v":{"v":0,"d":"0 EUR"}}]
[null,"Priežiūra",null,null,{"$f":"Lentelė6[[#This Row],[Numatomos išlaidos]]-Lentelė6[[#This Row],[Faktinės išlaidos]]","v":{"v":0,"d":"0 EUR"}}]
[null,"Žaislai",null,null,{"$f":"Lentelė6[[#This Row],[Numatomos išlaidos]]-Lentelė6[[#This Row],[Faktinės išlaidos]]","v":{"v":0,"d":"0 EUR"}},null,"TEISINĖS","Numatomos išlaidos","Faktinės išlaidos","Skirtumas"]
[null,"Kita",null,null,{"$f":"Lentelė6[[#This Row],[Numatomos išlaidos]]-Lentelė6[[#This Row],[Faktinės išlaidos]]","v":{"v":0,"d":"0 EUR"}},null,"Teisininkas",null,null,{"$f":"Lentelė12[[#This Row],[Numatomos išlaidos]]-Lentelė12[[#This Row],[Faktinės išlaidos]]","v":{"v":0,"d":"0 EUR"}}]
[null,"Suma",{"$f":"SUBTOTAL(109,Lentelė6[Numatomos išlaidos])","v":{"v":0,"d":"0 EUR"}},{"$f":"SUBTOTAL(109,Lentelė6[Faktinės išlaidos])","v":{"v":0,"d":"0 EUR"}},{"$f":"SUBTOTAL(109,Lentelė6[Skirtumas])","v":{"v":0,"d":"0 EUR"}},null,"Alimentai",null,null,{"$f":"Lentelė12[[#This Row],[Numatomos išlaidos]]-Lentelė12[[#This Row],[Faktinės išlaidos]]","v":{"v":0,"d":"0 EUR"}}]
[{"$nulls":6},"Mokėjimai paskolai arba teismo sprendimui padengti",null,null,{"$f":"Lentelė12[[#This Row],[Numatomos išlaidos]]-Lentelė12[[#This Row],[Faktinės išlaidos]]","v":{"v":0,"d":"0 EUR"}}]
[null,"ASMENINĖ PRIEŽIŪRA","Numatomos išlaidos","Faktinės išlaidos","Skirtumas",null,"Kita",null,null,{"$f":"Lentelė12[[#This Row],[Numatomos išlaidos]]-Lentelė12[[#This Row],[Faktinės išlaidos]]","v":{"v":0,"d":"0 EUR"}}]
[null,"Medicininės išlaidos",null,null,{"$f":"Lentelė7[[#This Row],[Numatomos išlaidos]]-Lentelė7[[#This Row],[Faktinės išlaidos]]","v":{"v":0,"d":"0 EUR"}},null,"Suma",{"$f":"SUBTOTAL(109,Lentelė12[Numatomos išlaidos])","v":{"v":0,"d":"0 EUR"}},{"$f":"SUBTOTAL(109,Lentelė12[Faktinės išlaidos])","v":{"v":0,"d":"0 EUR"}},{"$f":"SUBTOTAL(109,Lentelė12[Skirtumas])","v":{"v":0,"d":"0 EUR"}}]
[null,"Plaukai / nagai",null,null,{"$f":"Lentelė7[[#This Row],[Numatomos išlaidos]]-Lentelė7[[#This Row],[Faktinės išlaidos]]","v":{"v":0,"d":"0 EUR"}}]
[null,"Drabužiai",null,null,{"$f":"Lentelė7[[#This Row],[Numatomos išlaidos]]-Lentelė7[[#This Row],[Faktinės išlaidos]]","v":{"v":0,"d":"0 EUR"}},null,"NUMATOMŲ IŠLAIDŲ SUMA",null,null,{"$f":"SUM(C23,C33,C40,C46,C54,C64,H22,H31,H38,H44,H50,H57)","v":{"v":2060,"d":"2,060 EUR"}}]
[null,"Drabužių valykla",null,null,{"$f":"Lentelė7[[#This Row],[Numatomos išlaidos]]-Lentelė7[[#This Row],[Faktinės išlaidos]]","v":{"v":0,"d":"0 EUR"}}]
[null,"Sveikatos klubas",null,null,{"$f":"Lentelė7[[#This Row],[Numatomos išlaidos]]-Lentelė7[[#This Row],[Faktinės išlaidos]]","v":{"v":0,"d":"0 EUR"}},null,"FAKTINIŲ IŠLAIDŲ SUMA",null,null,{"$f":"SUM(D23,D33,D40,D46,D54,D64,I22,I31,I38,I44,I50,I57)","v":{"v":2040,"d":"2,040 EUR"}}]
[null,"Organizacijos mokesčiai ir įmokos",null,null,{"$f":"Lentelė7[[#This Row],[Numatomos išlaidos]]-Lentelė7[[#This Row],[Faktinės išlaidos]]","v":{"v":0,"d":"0 EUR"}}]
[null,"Kita",null,null,{"$f":"Lentelė7[[#This Row],[Numatomos išlaidos]]-Lentelė7[[#This Row],[Faktinės išlaidos]]","v":{"v":0,"d":"0 EUR"}},null,"SKIRTUMO SUMA",null,null,{"$f":"SUM(E23,E33,E40,E46,E54,E64,J22,J31,J38,J44,J50,J57)","v":{"v":20,"d":"20 EUR"}}]
[null,"Suma",{"$f":"SUBTOTAL(109,Lentelė7[Numatomos išlaidos])","v":{"v":0,"d":"0 EUR"}},{"$f":"SUBTOTAL(109,Lentelė7[Faktinės išlaidos])","v":{"v":0,"d":"0 EUR"}},{"$f":"SUBTOTAL(109,Lentelė7[Skirtumas])","v":{"v":0,"d":"0 EUR"}}]